bitfinex/quotes_SOLUSD_20241126
["timestamp","ask_amount","ask_price","bid_price","bid_amount"]
[1732625272008,26.70483587,226.83,226.82,0.5210611]
[1732625272825,4.4081,226.85,226.82,0.5210611]
[1732625273222,170.82812923,226.87,226.82,0.5210611]
[1732625273433,31.11283587,226.86,226.82,0.5210611]
[1732625273635,4.408,226.86,226.82,0.5210611]
[1732625274324,26.70483587,226.84,226.82,0.5210611]
[1732625274712,26.70483587,226.85,226.82,0.5210611]
[1732625275106,26.70483587,226.84,226.82,0.5210611]
[1732625275536,26.70483587,226.83,226.82,0.5210611]
[1732625276331,16.70398272,226.83,226.82,0.5210611]
[1732625276514,19.9866912,226.83,226.82,0.5210611]
[1732625277549,24.39429956,226.83,226.82,0.5210611]
[1732625278334,34.41487071,226.83,226.82,0.5210611]
[1732625279939,26.72455387,226.84,226.82,0.5210611]
[1732625280146,167.53285387,226.85,226.82,0.5210611]
[1732625280320,26.72455387,226.84,226.82,0.5210611]
[1732625280810,31.13285387,226.85,226.82,0.5210611]
[1732625281014,4.4083,226.85,226.82,0.5210611]
[1732625281232,31.13285387,226.85,226.82,0.5210611]
[1732625281431,4.4083,226.85,226.82,0.5210611]
[1732625281614,31.13285387,226.85,226.82,0.5210611]
[1732625282039,26.72455387,226.84,226.82,0.5210611]
[1732625282739,26.72455387,226.83,226.82,0.5210611]
[1732625283513,56.72929059,226.83,226.82,6.11e-05]
[1732625284028,20.0,226.76,226.6,16.0467]
[1732625284235,26.72455387,226.66,226.6,20.4596]
[1732625284613,26.72455387,226.68,226.61,26.85004387]
[1732625285013,26.72455387,226.68,226.61,26.72455387]
[1732625285213,26.72455387,226.68,226.62,23.776884]
[1732625285436,31.13615387,226.68,226.62,23.776884]
[1732625285838,31.13585387,226.69,226.63,23.776884]
[1732625286343,26.72455387,226.67,226.59,0.5210611]
[1732625286644,26.72455387,226.67,226.6,26.72455387]
[1732625287340,11.0248,226.76,226.66,26.72455387]
[1732625287543,26.72455387,226.73,226.66,26.72455387]
[1732625287725,26.72455387,226.72,226.67,23.776884]
[1732625287930,26.72455387,226.69,226.63,23.776884]
[1732625288547,26.72455387,226.68,226.62,23.776884]
[1732625289236,4.4116,226.67,226.62,23.776884]
[1732625289442,26.72455387,226.66,226.59,27.24561497]
[1732625289840,26.72455387,226.65,226.59,0.5210611]
[1732625290038,26.72455387,226.64,226.59,0.5210611]
[1732625290443,26.72455387,226.65,226.59,0.5210611]
[1732625290621,26.72455387,226.66,226.6,23.776884]
[1732625290821,4.4116,226.67,226.6,26.72455387]
[1732625290822,31.13615387,226.67,226.6,26.72455387]
[1732625291023,26.72455387,226.66,226.59,51.02249897]
[1732625291422,31.13655387,226.66,226.59,51.02249897]
[1732625292222,26.72455387,226.64,226.59,0.5210611]
[1732625292426,26.72455387,226.65,226.59,0.5210611]
[1732625292651,4.412,226.66,226.6,26.72455387]
[1732625292821,4.412,226.66,226.59,0.5210611]
[1732625292822,4.412,226.66,226.59,27.24561497]
[1732625293027,31.13655387,226.66,226.6,23.776884]
[1732625293444,26.72455387,226.65,226.59,24.2979451]
[1732625293827,31.13655387,226.66,226.59,51.02249897]
[1732625294147,26.72455387,226.64,226.59,24.2979451]
[1732625294340,26.72455387,226.64,226.59,0.5210611]
[1732625294543,31.13655387,226.66,226.6,23.776884]
[1732625294848,26.72455387,226.65,226.6,23.776884]
[1732625295032,26.72455387,226.65,226.59,0.5210611]
[1732625295438,26.72455387,226.63,226.59,0.5210611]
[1732625296035,26.72455387,226.62,226.59,0.5210611]
[1732625296331,26.72455387,226.61,226.59,0.5210611]
[1732625296655,26.72455387,226.63,226.59,0.5210611]
[1732625296828,26.72455387,226.64,226.59,0.5210611]
[1732625297032,26.72455387,226.63,226.59,0.5210611]
[1732625297234,26.72455387,226.62,226.59,0.5210611]
[1732625297454,4.4128,226.61,226.59,0.5210611]
[1732625298160,4.4122,226.64,226.59,0.5210611]
[1732625298334,26.72455387,226.62,226.59,0.5210611]
[1732625298649,31.13635387,226.67,226.6,23.776884]
[1732625298962,4.4108,226.72,226.62,0.12549]
[1732625299457,147.4257,226.75,226.61,0.25098]
[1732625299629,140.8103,226.74,226.63,23.902374]
[1732625299833,26.72455387,226.73,226.67,23.776884]
[1732625300249,26.72455387,226.72,226.67,23.776884]
[1732625300460,16.71298715,226.69,226.59,17.0442611]
[1732625300756,16.71298715,226.7,226.63,40.48987115]
[1732625300939,153.11298715,226.73,226.67,23.776884]
[1732625301151,4.4103,226.74,226.67,23.776884]
[1732625301647,11.0241,226.78,226.6,5.0]
[1732625301648,17.659544,226.82,226.64,5.0]
[1732625301954,4.4089,226.81,226.66,0.12549]
[1732625302259,16.71298715,226.77,226.71,23.776884]
[1732625302432,16.71298715,226.76,226.71,23.776884]
[1732625302626,16.71298715,226.76,226.7,23.776884]
[1732625303457,16.71298715,226.73,226.67,23.776884]
[1732625303936,16.71298715,226.74,226.67,16.71298715]
[1732625304655,21.12308715,226.75,226.68,16.71298715]
[1732625304962,16.71298715,226.72,226.65,16.71298715]
[1732625305134,16.71298715,226.71,226.64,16.71298715]
[1732625305340,15.4354,226.75,226.66,16.83847715]
[1732625305341,4.4101,226.75,226.66,16.83847715]
[1732625305661,21.12308715,226.75,226.68,16.71298715]
[1732625305862,16.71298715,226.74,226.67,16.71298715]
[1732625306251,16.71298715,226.72,226.68,23.776884]
[1732625306447,16.71298715,226.71,226.65,23.776884]
[1732625306641,16.71298715,226.73,226.67,23.776884]
[1732625307039,21.12368715,226.72,226.66,23.776884]
[1732625307253,4.4107,226.72,226.66,40.48987115]
[1732625307566,4.4105,226.74,226.69,23.776884]
[1732625307766,4.41,226.76,226.71,16.71298715]
[1732625307943,21.12298715,226.76,226.72,23.776884]
[1732625308338,16.71298715,226.75,226.72,23.776884]
[1732625308839,140.8085,226.83,226.72,23.776884]
[1732625309173,4.4087,226.83,226.78,23.776884]
[1732625309645,4.4087,226.83,226.77,23.776884]
[1732625309845,21.12168715,226.83,226.77,23.776884]
[1732625310051,16.71298715,226.8,226.74,23.776884]
[1732625310250,16.71298715,226.81,226.74,40.48987115]
[1732625310454,16.71298715,226.8,226.74,23.776884]
[1732625310660,16.71298715,226.82,226.75,16.71298715]
[1732625310866,140.8082,226.85,226.79,16.71298715]
[1732625311049,140.8082,226.85,226.81,23.776884]
[1732625311245,7.72329336,226.87,226.85,23.776884]
[1732625311943,7.72329336,226.87,226.86,23.776884]
[1732625312961,28.84408051,226.87,226.81,23.776884]
[1732625313179,16.71298715,226.86,226.79,23.776884]
[1732625313359,16.71298715,226.85,226.78,16.71298715]
[1732625314663,16.71298715,226.84,226.77,23.776884]
[1732625314850,16.71298715,226.86,226.81,23.776884]
[1732625315048,4.4081,226.85,226.8,23.776884]
[1732625315251,21.12108715,226.85,226.8,23.776884]
[1732625315448,16.71298715,226.83,226.76,23.776884]
[1732625315644,21.12108715,226.85,226.78,40.48987115]
[1732625315844,4.4081,226.85,226.79,40.48987115]
[1732625316046,7.72329336,226.87,226.82,16.71298715]
[1732625316243,7.72329336,226.87,226.79,24.43807635]
[1732625316446,7.72329336,226.87,226.81,23.776884]
[1732625316665,7.72329336,226.87,226.8,5.0]
[1732625316666,7.72329336,226.87,226.86,40.48987115]
[1732625317355,7.72329336,226.87,226.86,23.776884]
[1732625317554,6.72329336,226.87,226.86,40.48987115]
[1732625317950,6.72329336,226.87,226.86,23.776884]
[1732625318264,6.72329336,226.87,226.84,23.776884]
[1732625318469,6.72329336,226.87,226.86,23.776884]
[1732625318765,6.72329336,226.87,226.86,40.48987115]
[1732625319279,21.11848715,226.99,226.86,49.89787115]
[1732625319473,4.4055,226.99,226.93,16.71298715]
[1732625319765,4.4055,226.99,226.94,16.71298715]
[1732625319980,4.4055,226.99,226.93,16.71298715]
[1732625320472,21.11848715,226.99,226.91,16.71298715]
[1732625320858,16.71298715,226.98,226.91,16.71298715]
[1732625321275,21.11848715,226.99,226.91,16.71298715]
[1732625321446,20.11848715,226.99,226.92,23.776884]
[1732625322076,20.11848715,226.99,226.84,18.41686856]
[1732625322077,16.71298715,226.93,226.84,16.71298715]
[1732625322374,16.71298715,226.91,226.84,16.71298715]
[1732625322570,16.71298715,226.92,226.84,21.12128715]
[1732625322769,21.11978715,226.92,226.85,16.71298715]
[1732625322959,16.71298715,226.91,226.83,16.71298715]
[1732625323160,16.71298715,226.9,226.83,16.71298715]
[1732625323375,16.71298715,226.89,226.82,16.71298715]
[1732625324075,16.71298715,226.87,226.8,16.71298715]
[1732625324279,16.71298715,226.81,226.71,4.4109]
[1732625324573,16.71298715,226.82,226.75,16.71298715]
[1732625325354,16.71298715,226.83,226.76,16.71298715]
[1732625325654,4.4087,226.82,226.76,16.71298715]
[1732625325976,16.71298715,226.77,226.69,16.71298715]
[1732625326166,16.71298715,226.76,226.69,16.71298715]
[1732625326366,16.71298715,226.79,226.72,16.71298715]
[1732625327061,20.3792,226.82,226.66,5.0]
[1732625327062,16.71298715,226.8,226.73,16.71298715]
[1732625327259,16.71298715,226.81,226.74,16.71298715]
[1732625327457,21.12168715,226.82,226.75,16.71298715]
[1732625327878,16.71298715,226.77,226.72,23.776884]
[1732625328055,16.71298715,226.78,226.71,16.71298715]
[1732625328261,15.4306,226.82,226.73,16.71298715]
[1732625328485,14.4306,226.82,226.73,16.71298715]
[1732625328683,14.4306,226.82,226.66,5.0]
[1732625329283,16.71298715,226.79,226.73,23.776884]
[1732625329485,16.71298715,226.78,226.71,16.71298715]
[1732625329665,16.71298715,226.76,226.72,23.776884]
[1732625329861,21.12268715,226.77,226.72,23.776884]
[1732625330059,4.4097,226.77,226.71,40.48987115]
[1732625330570,20.0,226.69,226.59,0.5210611]
[1732625330770,16.71298715,226.6,226.59,0.5210611]
[1732625330972,136.4,226.68,226.59,0.5210611]
[1732625331157,136.4,226.73,226.59,0.5210611]
[1732625331359,20.0,226.69,226.59,0.5210611]
[1732625331558,16.71298715,226.6,226.59,0.5210611]
[1732625332360,26.77062892,226.6,226.59,0.5210611]
[1732625335669,53.54125784,226.6,226.59,0.5210611]
[1732625335862,4.4129,226.61,226.59,0.5210611]
[1732625336064,26.77062892,226.6,226.59,0.5210611]
[1732625337366,53.54125784,226.6,226.59,0.5210611]
[1732625337684,140.8132,226.59,226.44,4.4161]
[1732625337995,26.77062892,226.51,226.44,4.4161]
[1732625338173,26.77062892,226.51,226.44,31.84893266]
[1732625338374,26.77062892,226.5,226.44,4.4161]
[1732625338566,26.77062892,226.46,226.41,4.4166]
[1732625338776,26.77062892,226.46,226.42,20.0]
[1732625338988,26.77062892,226.47,226.42,20.0]
[1732625339169,26.77062892,226.47,226.43,20.0]
[1732625339370,26.77062892,226.44,226.36,4.9385611]
[1732625339585,26.77062892,226.42,226.36,4.9385611]
[1732625339777,26.77062892,226.43,226.36,31.70919002]
[1732625339970,26.77062892,226.43,226.36,4.9385611]
[1732625340171,26.77062892,226.42,226.36,4.9385611]
[1732625340374,26.77062892,226.44,226.37,26.77062892]
[1732625340574,26.77062892,226.46,226.38,26.77062892]
[1732625340881,26.77062892,226.43,226.36,47.75349002]
[1732625341396,26.77062892,226.47,226.4,50.54751292]
[1732625341771,26.77062892,226.45,226.4,23.776884]
[1732625341968,26.77062892,226.44,226.4,23.776884]
[1732625342286,26.77062892,226.41,226.36,4.9385611]
[1732625342590,26.77062892,226.38,226.36,0.5210611]
[1732625342981,26.77062892,226.39,226.36,0.5210611]
[1732625343291,26.77062892,226.38,226.36,0.5210611]
[1732625343609,26.77062892,226.41,226.36,4.9385611]
[1732625343969,26.77062892,226.38,226.36,0.5210611]
[1732625344174,26.77062892,226.37,226.36,0.5210611]
[1732625344578,26.77062892,226.38,226.36,0.5210611]
[1732625344780,58.19442892,226.49,226.36,31.70929002]
[1732625344781,26.77062892,226.43,226.36,31.70929002]
[1732625344997,26.77062892,226.46,226.39,26.77062892]
[1732625345178,17.678982,226.55,226.47,20.0]
[1732625345379,17.678982,226.55,226.48,4.4154]
[1732625345586,22.3497,226.65,226.48,5.07746341]
[1732625345903,22.3497,226.65,226.54,20.0]
[1732625346201,22.3497,226.77,226.59,50.54751292]
[1732625346376,22.3497,226.77,226.55,24.43875338]
[1732625346377,26.77062892,226.68,226.62,23.776884]
[1732625346567,26.77062892,226.7,226.63,26.77062892]
[1732625346772,26.77062892,226.68,226.62,23.776884]
[1732625346990,26.77062892,226.67,226.61,23.776884]
[1732625347569,26.77062892,226.72,226.64,26.77062892]
[1732625347773,26.77062892,226.73,226.66,26.77062892]
[1732625347972,26.77062892,226.73,226.65,23.776884]
[1732625347973,26.77062892,226.74,226.67,50.54751292]
[1732625348389,26.77062892,226.73,226.66,23.776884]
[1732625348596,136.4,226.79,226.7,23.776884]
[1732625348895,26.77062892,226.79,226.73,23.776884]
[1732625349100,26.77062892,226.78,226.73,23.776884]
[1732625349304,26.77062892,226.78,226.71,50.54751292]
[1732625349593,26.77062892,226.79,226.71,54.95831292]
[1732625350398,12.68309751,226.87,226.79,23.776884]
[1732625350399,39.45372643,226.87,226.79,23.776884]
[1732625350580,12.68309751,226.87,226.82,23.776884]
[1732625350786,39.45372643,226.87,226.82,23.776884]
[1732625350988,39.45372643,226.87,226.81,23.776884]
[1732625351400,26.77062892,226.86,226.81,23.776884]
[1732625351604,26.77062892,226.86,226.79,50.54751292]
[1732625351808,39.45372643,226.87,226.79,50.54751292]
[1732625352097,26.77062892,226.86,226.79,23.776884]
[1732625352475,26.77062892,226.85,226.79,23.776884]
[1732625352808,26.77062892,226.86,226.79,23.776884]
[1732625352974,39.45372643,226.87,226.79,50.54751292]
[1732625353175,39.45372643,226.87,226.81,23.776884]
[1732625353612,26.77062892,226.84,226.78,23.776884]
[1732625353777,26.77062892,226.86,226.78,50.54751292]
[1732625353985,12.68309751,226.87,226.81,50.54751292]
[1732625354291,26.77062892,226.86,226.81,23.776884]
[1732625354483,26.77062892,226.83,226.78,23.776884]
[1732625355382,26.77062892,226.81,226.77,23.776884]
[1732625355707,26.77062892,226.78,226.67,26.77062892]
[1732625355881,136.4,226.77,226.6,16.203]
[1732625356206,136.4,226.8,226.6,20.6159]
[1732625356389,26.77062892,226.74,226.67,26.77062892]
[1732625356585,26.77062892,226.76,226.7,26.77062892]
[1732625356792,26.77062892,226.75,226.68,26.77062892]
[1732625356999,26.77062892,226.77,226.7,26.77062892]
[1732625357195,26.77062892,226.75,226.68,26.77062892]
[1732625357504,136.4,226.8,226.66,4.4118]
[1732625357708,26.77062892,226.75,226.68,26.77062892]
[1732625357883,26.77062892,226.79,226.72,26.77062892]
[1732625358083,149.08309751,226.87,226.69,20.0]
[1732625358284,17.09089751,226.87,226.72,20.0]
[1732625358502,26.77062892,226.82,226.74,26.77062892]
[1732625358699,26.77062892,226.81,226.74,26.77062892]
[1732625358897,26.77062892,226.82,226.75,50.54751292]
[1732625359096,26.77062892,226.83,226.77,23.776884]
[1732625359489,26.77062892,226.81,226.75,23.776884]
[1732625359712,26.77062892,226.81,226.74,23.776884]
[1732625360012,26.77062892,226.82,226.76,23.776884]
[1732625360197,26.77062892,226.81,226.76,23.776884]
[1732625360520,4.408,226.86,226.74,23.776884]
[1732625360677,26.77062892,226.75,226.71,23.776884]
[1732625360883,136.4,226.81,226.63,31.18302892]
[1732625361106,136.4,226.81,226.63,4.4124]
[1732625361579,26.77062892,226.66,226.61,4.4127]
[1732625361783,26.77062892,226.68,226.61,31.18332892]
[1732625362207,26.77062892,226.7,226.63,26.77062892]
[1732625362499,26.77062892,226.69,226.62,26.77062892]
[1732625362705,26.77062892,226.73,226.65,26.77062892]
[1732625362906,26.77062892,226.77,226.71,23.776884]
[1732625363405,26.77062892,226.75,226.69,23.776884]
[1732625363721,4.4091,226.8,226.7,23.776884]
[1732625363906,26.77062892,226.75,226.7,23.776884]
[1732625364706,26.77062892,226.74,226.7,23.776884]
[1732625364909,26.77062892,226.72,226.68,23.776884]
[1732625365104,23.27062892,226.69,226.68,23.776884]
[1732625365406,23.27062892,226.69,226.61,5.0]
[1732625365407,26.77062892,226.71,226.67,23.776884]
[1732625366009,26.77062892,226.74,226.67,23.776884]
[1732625366425,26.77062892,226.73,226.67,23.776884]
[1732625366632,26.77062892,226.72,226.67,23.776884]
[1732625367004,26.77062892,226.7,226.67,23.776884]
[1732625367209,26.77062892,226.72,226.67,28.188484]
[1732625367424,26.77062892,226.73,226.67,28.188484]
[1732625367931,26.77062892,226.74,226.67,54.95911292]
[1732625368110,26.77062892,226.77,226.7,26.77062892]
[1732625368310,26.77062892,226.78,226.71,50.54751292]
[1732625368515,26.77062892,226.75,226.71,23.776884]
[1732625368727,26.77062892,226.75,226.69,23.776884]
[1732625369036,26.77062892,226.82,226.69,23.776884]
[1732625369037,31.17942892,226.82,226.69,28.188084]
[1732625369202,26.77062892,226.7,226.63,4.4124]
[1732625369402,26.77062892,226.66,226.59,26.77062892]
[1732625369609,26.77062892,226.69,226.62,26.77062892]
[1732625370517,26.77062892,226.67,226.6,26.77062892]
[1732625370807,26.77062892,226.67,226.61,4.4128]
[1732625371515,26.77062892,226.68,226.62,23.776884]
[1732625371829,26.77062892,226.69,226.62,50.54751292]
[1732625372033,26.77062892,226.66,226.62,23.776884]
[1732625372208,26.77062892,226.65,226.62,23.776884]
[1732625372530,26.77062892,226.68,226.62,23.776884]
[1732625372826,26.77062892,226.68,226.62,28.189384]
[1732625373023,26.77062892,226.67,226.6,4.4128]
[1732625373207,26.77062892,226.67,226.6,31.18342892]
[1732625373830,26.77062892,226.67,226.6,4.4128]
[1732625374240,26.77062892,226.68,226.61,50.54751292]
[1732625374410,26.77062892,226.73,226.66,23.776884]
[1732625374615,26.77062892,226.74,226.68,23.776884]
[1732625374813,140.8091,226.8,226.68,23.776884]
[1732625375112,4.4091,226.8,226.68,23.776884]
[1732625375532,136.4,226.79,226.61,23.776884]
[1732625375752,136.4,226.79,226.62,0.12549]
[1732625376126,26.77062892,226.74,226.67,23.776884]
[1732625377131,26.77062892,226.73,226.67,23.776884]
[1732625377335,26.77062892,226.73,226.67,28.188484]
[1732625377514,26.77062892,226.7,226.64,28.189084]
[1732625377710,26.77062892,226.71,226.64,28.189084]
[1732625378037,26.77062892,226.71,226.64,54.95971292]
[1732625378410,26.77062892,226.73,226.66,23.776884]
[1732625379027,26.77062892,226.72,226.66,23.776884]
[1732625379212,26.77062892,226.73,226.66,26.77062892]
[1732625379605,26.77062892,226.74,226.67,31.18222892]
[1732625380110,26.77062892,226.74,226.68,23.776884]
[1732625380510,26.77062892,226.7,226.65,28.188784]
[1732625380732,26.77062892,226.66,226.6,1.79301772]
[1732625381034,26.77062892,226.65,226.59,4.4132]
[1732625381221,26.77062892,226.66,226.59,31.18382892]
[1732625382327,4.4115,226.68,226.61,26.77062892]
[1732625382328,26.77062892,226.68,226.61,26.77062892]
[1732625382633,26.77062892,226.71,226.64,26.77062892]
[1732625382813,26.77062892,226.71,226.65,23.776884]
[1732625383014,4.4103,226.74,226.65,50.54751292]
[1732625383015,26.77062892,226.72,226.65,50.54751292]
[1732625383816,26.77062892,226.73,226.67,26.77062892]
[1732625384015,26.77062892,226.71,226.65,28.188784]
[1732625384735,26.77062892,226.68,226.65,28.188784]
[1732625384939,26.77062892,226.68,226.65,23.776884]
[1732625385115,26.77062892,226.67,226.65,23.776884]
[1732625385316,15.4333,226.78,226.63,23.776884]
[1732625385317,26.77062892,226.66,226.63,23.776884]
[1732625385527,26.77062892,226.66,226.6,4.413]
[1732625385726,26.77062892,226.65,226.6,4.413]
[1732625386035,26.77062892,226.64,226.6,4.413]
[1732625386720,26.77062892,226.63,226.6,23.776884]
[1732625387239,26.77062892,226.64,226.6,23.776884]
[1732625387447,26.77062892,226.66,226.6,50.54751292]
[1732625387739,26.77062892,226.7,226.64,4.4122]
[1732625388032,26.77062892,226.71,226.65,23.776884]
[1732625388534,26.77062892,226.72,226.66,26.77062892]
[1732625388838,26.77062892,226.7,226.67,23.776884]
[1732625389020,26.77062892,226.69,226.65,23.776884]
[1732625389347,140.8093,226.79,226.63,28.189284]
[1732625389348,26.77062892,226.67,226.63,28.189284]
[1732625389525,26.77062892,226.66,226.61,4.4126]
[1732625389718,26.77062892,226.66,226.6,4.413]
[1732625390421,26.77062892,226.69,226.62,26.77062892]
[1732625390625,26.77062892,226.68,226.61,26.77062892]
[1732625390828,26.77062892,226.68,226.62,23.776884]
[1732625391419,26.77062892,226.67,226.61,23.776884]
[1732625391619,26.77062892,226.66,226.61,4.4127]
[1732625391930,26.77062892,226.65,226.62,23.776884]
[1732625392520,26.77062892,226.65,226.61,23.776884]
[1732625393555,26.77062892,226.71,226.61,28.189684]
[1732625393556,26.77062892,226.66,226.61,28.189684]
[1732625394746,4.4115,226.68,226.55,26.77062892]
[1732625394747,26.77062892,226.62,226.55,26.77062892]
[1732625395048,26.77062892,226.57,226.51,6.6129]
[1732625395428,26.77062892,226.58,226.51,33.38352892]
[1732625395623,26.77062892,226.59,226.52,31.18522892]
[1732625396028,26.77062892,226.6,226.53,26.77062892]
[1732625396434,26.77062892,226.61,226.54,50.54751292]
[1732625396625,26.77062892,226.6,226.53,50.54751292]
[1732625396827,26.77062892,226.59,226.53,23.776884]
[1732625397028,26.77062892,226.59,226.53,28.191184]
[1732625397338,26.77062892,226.58,226.53,28.191184]
[1732625397935,26.77062892,226.59,226.53,28.191184]
[1732625398140,26.77062892,226.61,226.53,54.96181292]
[1732625398446,26.77062892,226.6,226.53,28.191184]
[1732625398623,26.77062892,226.59,226.53,28.191184]
[1732625399133,26.77062892,226.6,226.53,54.96181292]
[1732625399336,4.4127,226.62,226.55,26.77062892]
[1732625399337,26.77062892,226.62,226.55,26.77062892]
[1732625399528,26.77062892,226.63,226.56,23.776884]
[1732625399728,26.77062892,226.62,226.56,23.776884]
[1732625400337,26.77062892,226.63,226.56,26.77062892]
[1732625400550,26.77062892,226.63,226.57,23.776884]
[1732625400939,26.77062892,226.63,226.58,4.4134]
[1732625401246,26.77062892,226.68,226.62,23.776884]
[1732625401754,18.75398211,226.73,226.64,23.776884]
[1732625401755,26.77062892,226.7,226.64,23.776884]
[1732625401964,26.77062892,226.71,226.65,23.776884]
[1732625402142,26.77062892,226.69,226.65,23.776884]
[1732625402463,12.68578211,226.73,226.69,23.776884]
[1732625402862,12.68578211,226.73,226.68,23.776884]
[1732625403166,26.77062892,226.69,226.59,23.776884]
[1732625403350,26.77062892,226.63,226.59,28.189884]
[1732625403656,15.4355,226.75,226.54,12.82841523]
[1732625403657,26.77062892,226.65,226.58,26.77062892]
[1732625404241,26.77062892,226.62,226.56,4.4138]
[1732625404429,26.77062892,226.61,226.54,31.18462892]
[1732625404629,26.77062892,226.63,226.56,26.77062892]
[1732625405058,4.4118,226.67,226.59,4.4132]
[1732625405360,26.77062892,226.63,226.54,11.0355]
[1732625405652,26.77062892,226.61,226.54,26.77062892]
[1732625405857,26.77062892,226.6,226.54,23.776884]
[1732625406242,26.77062892,226.57,226.53,4.4144]
[1732625406444,26.77062892,226.54,226.47,26.77062892]
[1732625406654,26.77062892,226.51,226.44,26.77062892]
[1732625406962,26.77062892,226.51,226.43,4.4163]
[1732625406963,26.77062892,226.48,226.41,4.4167]
[1732625407162,4.4151,226.5,226.41,4.4167]
[1732625407360,26.77062892,226.47,226.41,4.4167]
[1732625407560,26.77062892,226.46,226.4,6.2217]
[1732625407764,26.77062892,226.42,226.34,6.2217]
[1732625407957,5.0,226.47,226.32,5.79808717]
[1732625408156,26.77062892,226.37,226.32,5.79808717]
[1732625408360,136.4,226.48,226.32,5.79808717]
[1732625408361,20.0,226.45,226.32,5.79808717]
[1732625408666,20.0,226.45,226.33,26.77062892]
[1732625408667,26.77062892,226.4,226.33,26.77062892]
[1732625408846,26.77062892,226.42,226.35,31.18842892]
[1732625409047,26.77062892,226.42,226.35,26.77062892]
[1732625409362,26.77062892,226.39,226.32,32.56871609]
[1732625409550,26.77062892,226.39,226.33,4.4182]
[1732625409748,26.77062892,226.4,226.33,31.18882892]
[1732625410150,4.4163,226.44,226.33,31.18882892]
[1732625410151,26.77062892,226.39,226.33,4.4182]
[1732625410468,26.77062892,226.4,226.34,4.418]
[1732625410849,26.77062892,226.39,226.34,23.776884]
[1732625411058,48.32542892,226.38,226.32,5.79808717]
[1732625411369,48.32542892,226.38,226.09,45.96425797]
[1732625411370,26.77062892,226.33,226.17,26.77062892]
[1732625411570,26.77062892,226.3,226.23,26.77062892]
[1732625411875,26.77062892,226.33,226.25,26.77062892]
[1732625412163,26.77062892,226.35,226.27,26.77062892]
[1732625412364,26.77062892,226.37,226.29,26.77062892]
[1732625412854,4.4168,226.41,226.29,26.77062892]
[1732625412855,26.77062892,226.35,226.29,26.77062892]
[1732625413056,26.77062892,226.37,226.29,26.77062892]
[1732625413468,26.77062892,226.33,226.25,26.77062892]
[1732625413647,26.77062892,226.33,226.26,23.776884]
[1732625413845,26.77062892,226.31,226.23,26.77062892]
[1732625414261,26.77062892,226.33,226.26,26.77062892]
[1732625414459,26.77062892,226.33,226.24,26.77062892]
[1732625414657,26.77062892,226.31,226.24,26.77062892]
[1732625414973,26.77062892,226.31,226.23,26.77062892]
[1732625415371,26.77062892,226.32,226.25,26.77062892]
[1732625415674,26.77062892,226.38,226.25,26.77062892]
[1732625415675,26.77062892,226.33,226.25,26.77062892]
[1732625415969,26.77062892,226.3,226.22,26.77062892]
[1732625416180,26.77062892,226.26,226.18,26.77062892]
[1732625416647,26.77062892,226.23,226.16,26.77062892]
[1732625417048,26.77062892,226.25,226.17,26.77062892]
[1732625417354,26.77062892,226.26,226.19,26.77062892]
[1732625417763,26.77062892,226.29,226.22,26.77062892]
[1732625417969,26.77062892,226.28,226.22,23.776884]
[1732625418159,26.77062892,226.3,226.24,23.776884]
[1732625418359,26.77062892,226.26,226.19,26.77062892]
[1732625419372,26.77062892,226.28,226.2,26.77062892]
[1732625419546,26.77062892,226.27,226.19,31.19152892]
[1732625419747,26.77062892,226.27,226.2,23.776884]
[1732625419957,26.77062892,226.28,226.2,50.54751292]
[1732625420162,26.77062892,226.29,226.23,23.776884]
[1732625420456,26.77062892,226.33,226.26,26.77062892]
[1732625420658,26.77062892,226.31,226.27,23.776884]
[1732625421072,26.77062892,226.32,226.25,50.54751292]
[1732625421376,26.77062892,226.33,226.25,50.54751292]
[1732625421668,26.77062892,226.34,226.28,23.776884]
[1732625422078,26.77062892,226.33,226.26,23.776884]
[1732625422376,26.77062892,226.32,226.26,23.776884]
[1732625422551,26.77062892,226.38,226.26,23.776884]
[1732625422552,26.77062892,226.33,226.26,50.54751292]
[1732625422873,26.77062892,226.32,226.26,23.776884]
[1732625423086,26.77062892,226.28,226.26,23.776884]
[1732625423253,26.77062892,226.27,226.2,4.4207]
[1732625423453,26.77062892,226.28,226.21,26.77062892]
[1732625423774,4.4184,226.33,226.23,26.77062892]
[1732625424075,26.77062892,226.31,226.24,26.77062892]
[1732625424255,26.77062892,226.35,226.27,26.77062892]
[1732625424656,26.77062892,226.35,226.22,6.6538]
[1732625424657,26.77062892,226.3,226.28,23.776884]
[1732625424853,26.77062892,226.31,226.23,26.77062892]
[1732625425054,26.77062892,226.3,226.22,33.42442892]